bitfinex-derivatives/quotes_ETHF0:USTF0_20250816
["timestamp","ask_amount","ask_price","bid_price","bid_amount"]
[1755385204132,1.67985809,4429.5,4429.4,21.6515]
[1755385204825,0.20215809,4429.5,4429.4,21.9059]
[1755385206130,0.5208,4429.6,4429.5,1.2873]
[1755385206325,0.72297164,4429.6,4429.5,21.9049]
[1755385206630,1.30987164,4429.6,4429.5,21.9049]
[1755385206929,1.67987164,4429.6,4429.5,21.073]
[1755385207425,1.67987164,4429.6,4429.5,21.6505]
[1755385208026,1.67987164,4429.6,4429.5,21.9049]
[1755385213437,1.4777,4429.6,4429.5,21.9049]
[1755385217135,0.3305,4429.6,4429.5,21.6505]
[1755385217336,1.4777,4429.6,4429.5,21.9049]
[1755385220342,1.67671167,4429.6,4429.5,21.9049]
[1755385221944,1.67671167,4429.6,4429.5,21.6505]
[1755385223243,1.67671167,4429.6,4429.5,21.9093]
[1755385224340,1.67671167,4429.6,4429.5,21.6505]
[1755385226343,1.67671167,4429.6,4429.5,21.9093]
[1755385226644,1.67689993,4429.6,4429.5,21.9093]
[1755385229046,1.30689993,4429.6,4429.5,21.9093]
[1755385229441,0.19919993,4429.6,4429.5,21.9093]
[1755385229647,0.19946398,4430.0,4429.5,21.0289]
[1755385229850,1.4919,4429.7,4429.6,0.9758]
[1755385230043,1.69136614,4429.7,4429.6,1.2148]
[1755385234650,1.69136614,4429.7,4429.6,1.4736]
[1755385238062,1.04816614,4429.7,4429.6,1.4736]
[1755385238456,1.30446614,4429.7,4429.6,1.4736]
[1755385238758,1.69136614,4429.7,4429.6,1.4736]
[1755385239658,1.30446614,4429.7,4429.6,1.4736]
[1755385240062,1.69136614,4429.7,4429.6,1.4736]
[1755385240565,0.19946614,4429.7,4429.6,1.4736]
[1755385240758,0.19946614,4429.7,4429.6,0.6172]
[1755385240962,0.19946614,4430.0,4429.6,0.6172]
[1755385241157,3.2078,4430.1,4430.0,0.5947]
[1755385241365,3.9177459,4430.1,4430.0,21.9236]
[1755385241956,4.0838459,4430.1,4430.0,21.9236]
[1755385242364,4.6429459,4430.1,4430.0,21.9236]
[1755385243466,4.2560459,4430.1,4430.0,21.9236]
[1755385244667,4.6429459,4430.1,4430.0,21.9236]
[1755385247463,4.8992459,4430.1,4430.0,21.9236]
[1755385248272,1.6914459,4430.1,4430.0,21.9236]
[1755385252470,1.6914459,4430.1,4430.0,21.6648]
[1755385252677,1.69137569,4430.1,4430.0,21.6648]
[1755385255579,1.69136328,4430.1,4430.0,21.6648]
[1755385257776,1.69136328,4430.1,4430.0,21.9282]
[1755385258179,1.69136328,4430.1,4430.0,21.6648]
[1755385258774,1.69136328,4430.1,4430.0,21.9282]
[1755385260982,1.69136328,4430.1,4430.0,21.4258]
[1755385261280,1.69137563,4430.1,4430.0,20.7099]
[1755385261482,0.5898,4429.8,4429.7,3.2078]
[1755385261785,1.0887,4429.7,4429.6,20.445]
[1755385261984,1.64851227,4429.7,4429.6,20.445]
[1755385262278,0.6945,4429.6,4429.2,0.3736]
[1755385262485,0.4178,4429.0,4428.9,3.2078]
[1755385262678,1.449,4429.0,4428.9,23.6528]
[1755385263085,1.449,4429.0,4428.9,24.0264]
[1755385263284,1.449,4429.0,4428.9,23.6528]
[1755385263686,1.64854472,4429.0,4428.9,23.6528]
[1755385263985,1.64854472,4429.0,4428.9,20.445]
[1755385266188,0.5898,4428.7,4428.6,20.445]
[1755385266386,1.449,4428.6,4428.5,20.445]
[1755385266584,1.64836217,4428.6,4428.5,20.8186]
[1755385266882,1.64836217,4428.6,4428.5,21.5018]
[1755385267089,1.64836217,4428.6,4428.5,21.2489]
[1755385267277,1.449,4428.6,4428.5,21.2489]
[1755385268580,1.449,4428.6,4428.5,21.5018]
[1755385269087,1.449,4428.6,4428.5,21.6751]
[1755385269284,1.449,4428.6,4428.5,20.445]
[1755385269884,0.5898,4428.4,4428.3,20.448]
[1755385270086,0.5898,4428.4,4428.2,3.2078]
[1755385270087,1.64818277,4428.4,4428.2,3.2078]
[1755385270388,1.0887,4427.7,4427.6,4.3277]
[1755385270589,1.0887,4427.7,4427.6,24.7757]
[1755385270887,1.0887,4427.7,4427.6,25.1493]
[1755385271992,0.8375,4427.8,4427.7,1.3202]
[1755385272187,0.8375,4427.8,4427.7,1.4935]
[1755385272484,1.449,4427.8,4427.7,0.9772]
[1755385272792,1.449,4427.7,4427.6,24.2853]
[1755385272989,1.449,4427.7,4427.6,20.7039]
[1755385273283,1.449,4427.7,4427.6,21.9405]
[1755385273986,0.8592,4428.4,4427.7,0.8899]
[1755385274196,1.65173642,4428.3,4428.2,1.0568]
[1755385275483,1.449,4428.3,4428.2,1.0568]
[1755385275885,1.449,4428.3,4428.2,0.8039]
[1755385276084,0.8592,4428.2,4427.9,20.8226]
[1755385276280,3.2078,4428.5,4427.6,21.0765]
[1755385276281,1.449,4428.0,4427.6,21.0765]
[1755385276481,0.8592,4427.9,4427.7,0.3736]
[1755385276789,1.449,4427.8,4427.7,0.6305]
[1755385277191,1.449,4427.8,4427.7,1.0568]
[1755385277788,1.449,4427.8,4427.7,0.8039]
[1755385278589,1.449,4427.8,4427.7,0.2569]
[1755385278886,0.8925,4427.7,4427.6,20.8396]
[1755385279188,0.8925,4427.7,4427.6,21.2517]
[1755385279189,1.485,4427.7,4427.6,21.2517]
[1755385279485,0.2573,4428.1,4427.6,21.4164]
[1755385279787,1.485,4427.8,4427.7,1.2288]
[1755385280289,1.485,4427.8,4427.7,1.4885]
[1755385281688,1.485,4427.8,4427.6,20.45]
[1755385281887,1.485,4427.8,4427.7,1.4885]
[1755385283779,1.485,4427.8,4427.7,0.2527]
[1755385284283,1.485,4427.7,4427.6,21.2527]
[1755385284686,1.485,4427.7,4427.6,21.6771]
[1755385285085,1.485,4427.7,4427.6,21.9395]
[1755385285286,0.8925,4428.4,4427.8,0.5221]
[1755385285487,0.79521799,4428.3,4428.2,0.5768]
[1755385285688,1.68771799,4428.3,4428.2,1.4885]
[1755385286992,1.68771799,4428.3,4428.2,0.6423]
[1755385288997,1.68771799,4428.3,4428.2,0.8017]
[1755385289195,1.68771799,4428.3,4428.2,1.4885]
[1755385290800,1.68771799,4428.3,4428.2,1.2261]
[1755385291193,1.68771799,4428.3,4428.2,0.9664]
[1755385291396,1.68771799,4428.3,4428.2,0.8017]
[1755385291698,1.68771799,4428.3,4428.2,0.2527]
[1755385291900,0.79521799,4428.3,4428.0,0.3896]
[1755385292101,1.485,4428.1,4428.0,0.3896]
[1755385292304,1.68771799,4428.1,4428.0,0.3896]
[1755385294202,0.79521799,4428.1,4427.7,0.5221]
[1755385294398,1.68771799,4428.0,4427.9,0.8017]
[1755385294594,0.4979,4427.9,4427.6,3.2078]
[1755385294800,1.485,4427.6,4427.5,21.1238]
[1755385295005,1.485,4427.6,4427.5,21.5509]
[1755385295309,1.68853192,4427.6,4427.5,21.9405]
[1755385296194,1.68853192,4427.6,4427.5,21.0288]
[1755385296404,1.68853192,4427.6,4427.5,21.2537]
[1755385296602,1.68853192,4427.6,4427.2,21.1003]
[1755385296899,1.485,4427.3,4427.2,21.9395]
[1755385297104,1.68860068,4427.3,4427.2,21.6771]
[1755385298198,1.68860068,4427.3,4427.2,21.9395]
[1755385298599,1.68860068,4427.3,4427.2,20.451]
[1755385298793,1.68860068,4427.3,4427.2,21.5124]
[1755385299001,1.68860068,4427.3,4427.2,21.6771]
[1755385299405,1.68860068,4427.3,4427.2,21.9395]
[1755385300104,1.68860068,4427.3,4427.2,21.6771]
[1755385301103,1.68860068,4427.3,4427.2,21.9395]
[1755385301305,1.29400068,4427.3,4427.2,21.9395]
[1755385301703,1.68860068,4427.3,4427.2,21.9395]
[1755385302506,1.68860068,4427.3,4427.2,21.6771]
[1755385303104,1.05210068,4427.3,4427.2,21.9395]
[1755385303308,0.46090068,4427.3,4427.2,21.9395]
[1755385304106,0.2573,4427.3,4427.2,21.9395]
[1755385304302,0.2036567,4427.3,4427.2,21.9395]
[1755385304709,0.20364403,4427.3,4427.2,21.0278]
[1755385304905,0.20364403,4427.3,4427.2,21.9395]
[1755385305107,1.68864403,4427.3,4427.2,21.6771]
[1755385305512,1.68864403,4427.3,4427.2,21.9395]
[1755385305703,1.68864403,4427.3,4427.2,21.4174]
[1755385306105,1.68864403,4427.3,4427.2,21.9395]
[1755385307411,1.68864403,4427.3,4427.2,21.0933]
[1755385307602,1.68864403,4427.3,4427.2,21.6798]
[1755385307805,1.68864403,4427.3,4427.2,21.9395]
[1755385308208,1.68864403,4427.3,4427.2,21.6771]
[1755385308613,1.68864403,4427.3,4427.2,21.9395]
[1755385309216,1.68864403,4427.3,4427.2,21.6771]
[1755385310115,1.68862798,4427.3,4427.2,20.451]
[1755385310821,1.68862798,4427.3,4427.2,21.2537]
[1755385311027,1.68862798,4427.3,4427.2,21.6709]
[1755385311221,1.68862798,4427.3,4427.2,21.6719]
[1755385311423,1.68862798,4427.3,4427.2,21.9179]
[1755385311918,1.68862798,4427.3,4426.5,35.9724]
[1755385312221,0.3324,4426.7,4426.6,21.0215]
[1755385312415,1.2061,4426.7,4426.6,21.0215]
[1755385312610,0.8378,4426.7,4426.6,21.0215]
[1755385312816,0.8378,4426.7,4426.6,21.9179]
[1755385312817,0.5054,4426.7,4426.6,21.9179]
[1755385313016,0.257,4426.7,4426.6,21.9179]
[1755385314123,1.4597,4426.7,4426.6,21.9179]
[1755385314922,1.0914,4426.7,4426.6,21.5201]
[1755385315121,1.66334253,4426.7,4426.6,21.9179]
[1755385315311,1.29504253,4426.7,4426.5,3.2078]
[1755385315510,1.4597,4426.7,4426.6,21.9179]
[1755385315722,1.6633136,4426.7,4426.6,21.9179]
[1755385316124,1.2950136,4426.7,4426.6,21.9179]
[1755385316318,1.29499031,4426.7,4426.6,21.9179]
[1755385317214,1.0914,4426.7,4426.6,21.9179]
[1755385318024,1.29497782,4426.7,4426.6,21.9179]
[1755385318223,1.0914,4426.7,4426.6,21.9179]
[1755385318824,1.4597,4426.7,4426.6,21.9179]
[1755385321326,0.78959399,4426.7,4426.6,21.0916]
[1755385321628,0.78959399,4426.7,4426.6,0.6396]
[1755385321827,1.03799399,4426.7,4426.6,21.0916]
[1755385322126,1.66329399,4426.7,4426.6,0.6396]
[1755385322428,1.66329399,4426.7,4426.6,21.0916]
[1755385322922,0.78959399,4426.7,4425.9,3.2078]
[1755385323227,1.4597,4426.1,4426.0,21.9179]
[1755385323418,1.4597,4426.1,4426.0,21.6719]
[1755385324018,1.4597,4426.1,4426.0,21.9179]
[1755385326025,1.2919,4426.1,4426.0,21.9179]
[1755385326230,1.4597,4426.7,4426.6,0.4049]
[1755385326432,1.66322101,4426.7,4426.6,0.8027]
[1755385326727,1.66322101,4426.7,4426.6,0.6396]
[1755385326927,1.66322101,4426.7,4426.4,20.453]
[1755385327128,1.4597,4426.5,4426.4,20.8508]
[1755385327329,1.66322101,4426.5,4426.4,20.453]
[1755385327521,1.66322101,4426.5,4426.2,21.1034]
[1755385327726,1.4597,4426.3,4426.2,20.453]
[1755385327920,1.66322101,4426.3,4426.2,20.453]
[1755385329628,0.20352101,4426.3,4425.9,3.2078]
[1755385329928,0.8344,4425.9,4425.8,0.4049]
[1755385330236,0.8344,4425.9,4425.8,1.4659]
[1755385330237,1.66322101,4425.9,4425.8,1.4659]
[1755385330731,1.29492101,4425.9,4425.8,1.4659]
[1755385330932,0.8378,4425.9,4425.8,1.4659]
[1755385331133,1.40944059,4425.9,4425.8,1.4659]
[1755385331333,1.66304059,4425.9,4425.8,1.4659]
[1755385332431,1.4597,4425.9,4425.8,1.4659]
[1755385335335,0.5054,4426.0,4425.9,1.0595]
[1755385335535,0.70698034,4426.0,4425.9,1.4659]
[1755385335838,1.66128034,4426.0,4425.9,1.4659]
[1755385337540,1.4597,4426.0,4425.9,1.4659]
[1755385339340,1.66131564,4426.0,4425.9,1.4659]
[1755385339744,1.29301564,4426.0,4425.9,1.4659]
[1755385339943,1.4599,4426.0,4425.9,1.4659]
[1755385341144,1.66156605,4426.0,4425.9,1.4659]
[1755385341945,1.65681051,4426.0,4425.9,1.4659]
[1755385343945,1.45514446,4426.0,4425.9,1.4659]
[1755385344146,1.6568971,4426.0,4425.9,1.4659]
[1755385344840,3.2078,4426.1,4425.9,0.5695]
[1755385345042,3.2078,4426.1,4426.0,1.5042]
[1755385346346,3.2078,4426.6,4426.5,1.5042]
[1755385347347,3.2078,4427.3,4426.5,0.589]
[1755385347647,0.6695,4426.9,4426.8,1.5042]
[1755385348048,1.4459,4427.2,4427.1,0.589]
[1755385348346,1.64766948,4427.2,4427.1,1.5042]
[1755385348741,1.27916948,4427.2,4427.1,1.2409]
[1755385348942,1.64766948,4427.2,4427.1,1.5042]
[1755385349138,0.79516948,4427.2,4427.1,1.5042]
[1755385349341,1.40616948,4427.2,4427.1,1.5042]
[1755385350446,1.64766948,4427.2,4427.1,1.5042]
[1755385351250,1.4459,4427.2,4427.1,1.5042]
[1755385352047,3.2078,4427.3,4427.1,1.5042]
[1755385352251,3.2078,4427.3,4427.2,1.5042]
[1755385352551,3.7138,4427.3,4427.2,1.5042]
[1755385352942,0.506,4427.3,4427.2,1.5042]
[1755385353544,1.2044,4427.3,4427.2,1.5042]
[1755385353751,1.4459,4427.3,4427.2,1.5042]
[1755385357942,1.4459,4427.3,4427.2,0.2539]
[1755385358249,1.4459,4427.2,4427.1,20.451]
[1755385358949,1.4459,4427.2,4426.8,0.3877]
[1755385359249,1.4459,4427.0,4426.9,0.9058]
[1755385359443,1.4459,4427.0,4426.9,1.0679]
[1755385359850,0.8359,4427.0,4426.9,1.5042]
[1755385360050,1.4459,4427.7,4427.6,1.5042]
[1755385360550,1.4459,4427.7,4427.6,0.9767]
[1755385361154,1.4459,4427.7,4427.4,20.7152]
[1755385361350,1.4459,4427.3,4427.2,20.451]
[1755385362256,1.4459,4427.3,4427.2,21.2547]
[1755385363957,1.4459,4427.3,4427.2,21.5189]
[1755385364153,1.4459,4427.3,4427.2,21.6919]
[1755385365054,1.4459,4427.3,4427.2,21.9552]
[1755385365451,1.0774,4427.3,4427.2,21.9552]
[1755385366051,0.2635,4427.4,4427.3,1.0773]
[1755385366257,0.506,4427.4,4427.3,1.5042]
[1755385367153,0.6695,4427.4,4427.3,1.5042]
[1755385367355,1.4459,4427.4,4427.3,1.5042]
[1755385368061,1.4459,4427.4,4427.3,1.2409]
[1755385368453,1.4459,4427.4,4427.3,1.5042]
[1755385368861,1.4459,4427.4,4427.3,0.9767]
[1755385369160,1.4459,4427.4,4427.3,0.416]
[1755385369556,1.4459,4427.4,4427.3,0.7914]
[1755385369957,1.4459,4427.4,4427.3,1.2155]
[1755385370558,1.4459,4427.4,4427.3,1.4613]
[1755385374065,0.8426,4427.7,4427.6,0.416]
[1755385374266,1.65039012,4427.7,4427.6,21.9103]
[1755385375563,1.65039012,4427.7,4427.6,21.6645]
[1755385376756,1.65039012,4427.7,4427.6,21.411]
[1755385380471,1.65039012,4427.7,4427.6,21.6645]
[1755385380669,1.65039012,4427.7,4427.6,21.9103]
[1755385381265,1.65083048,4427.7,4427.6,21.9103]
[1755385382978,1.04043048,4427.7,4427.6,21.9103]
[1755385383264,1.65083048,4427.7,4427.6,21.6645]
[1755385383470,1.65083048,4427.7,4427.6,21.0356]
[1755385383772,1.65083048,4427.7,4427.6,20.6976]
[1755385385772,1.65083048,4427.7,4427.6,21.073]
[1755385386871,1.65083048,4427.7,4427.6,20.449]
[1755385387870,1.65083048,4427.7,4427.6,20.8244]
[1755385388072,1.65083048,4427.7,4427.6,20.449]
[1755385388470,1.65083048,4427.7,4427.6,20.8244]
[1755385390174,1.65083048,4427.7,4427.6,0.3754]
[1755385390470,0.19783048,4427.7,4427.4,0.3754]
[1755385390675,1.453,4427.5,4427.4,0.7914]
[1755385390876,1.65083048,4427.5,4427.4,0.7914]
[1755385391172,1.453,4427.4,4427.3,20.447]
[1755385391475,1.65083048,4427.4,4427.3,20.8224]
[1755385392078,1.65089308,4427.4,4427.3,21.2384]
[1755385392375,1.65089308,4427.4,4427.3,1.0449]
[1755385392775,1.453,4427.4,4427.3,1.0449]
[1755385392977,1.65089002,4427.4,4427.2,20.447]
[1755385393177,1.40669002,4427.3,4426.7,0.3754]
[1755385393378,1.65089002,4427.2,4427.1,1.0449]
[1755385393776,0.19789002,4427.2,4426.8,20.447]
[1755385393975,3.2078,4427.8,4426.9,0.3754]
[1755385394181,1.0656873,4427.7,4427.0,0.4993]
[1755385394381,0.1978873,4427.6,4426.8,20.447]
[1755385394682,1.6508873,4427.5,4427.4,0.416]
[1755385394876,1.6508873,4427.5,4427.4,0.2486]
[1755385395182,1.6508873,4427.5,4427.4,1.2155]
[1755385395482,1.6508873,4427.5,4427.4,1.4613]
[1755385395683,1.65347053,4427.5,4427.4,1.4613]
[1755385396683,0.20047053,4427.5,4427.4,21.9083]
[1755385399887,0.46247053,4427.5,4427.4,21.9083]
[1755385400388,0.88477053,4427.5,4427.4,21.9083]
[1755385400586,1.45667053,4427.5,4427.4,21.9083]
[1755385403191,0.44917053,4427.5,4427.4,21.9083]
[1755385403494,0.20047053,4427.5,4427.4,21.9083]
[1755385404295,0.46247053,4427.5,4427.4,21.9083]
[1755385404494,0.71117053,4427.5,4427.4,21.9083]
[1755385405095,1.05937053,4427.5,4427.4,21.9083]
[1755385405297,1.45667053,4427.5,4427.4,21.9083]
[1755385407296,1.70787053,4427.5,4427.4,21.9083]
[1755385413300,1.70777877,4427.5,4427.4,21.9083]
[1755385415296,1.70777877,4427.5,4426.8,2.01207676]
[1755385415297,0.3973,4427.2,4426.9,0.5062]
[1755385415601,0.5107,4427.3,4427.2,1.0844]
[1755385415800,0.71107749,4427.3,4427.2,1.4624]
[1755385416000,0.5107,4427.3,4427.2,1.4624]
[1755385416201,0.71107749,4427.3,4427.2,1.4624]
[1755385416596,0.20037749,4427.3,4427.2,1.4624]
[1755385416803,0.46237749,4427.3,4427.2,1.4624]
[1755385417003,0.71107749,4427.3,4427.2,1.4624]
[1755385417302,0.88467749,4427.3,4427.2,1.4624]
[1755385417502,1.28197749,4427.3,4427.2,1.4624]
[1755385417703,1.45657749,4427.3,4427.2,1.4624]
[1755385418302,1.05927749,4427.3,4427.2,1.4624]
[1755385418503,0.20037749,4427.3,4427.2,1.4624]
[1755385418705,1.5074,4427.7,4427.6,0.5782]
[1755385418905,1.70776991,4427.7,4427.6,21.9074]
[1755385419899,1.70776991,4427.7,4427.6,21.6589]
[1755385422601,1.06176991,4427.7,4426.9,0.378]
[1755385422808,1.70776991,4427.6,4427.5,1.2139]
[1755385423008,1.70776991,4427.6,4427.5,21.6709]
[1755385423308,1.70776991,4427.6,4427.5,21.4132]
[1755385424208,1.70776991,4427.6,4427.5,20.7094]
[1755385424408,0.908,4427.5,4426.8,0.378]
[1755385424708,1.5074,4426.9,4426.8,1.4624]
[1755385424909,1.5074,4426.9,4426.8,21.9354]
[1755385428213,1.5074,4426.9,4426.8,21.4292]
[1755385428514,1.2562,4427.0,4426.9,0.9562]
[1755385429212,1.2562,4427.0,4426.9,1.4663]
[1755385429410,1.2562,4427.0,4426.9,21.9363]
[1755385430115,1.2562,4427.0,4426.9,21.9353]
[1755385430614,1.5074,4427.0,4426.9,21.9353]
[1755385430814,1.5074,4427.0,4426.9,1.4663]
[1755385431015,1.5074,4427.0,4426.9,21.9343]
[1755385431815,1.5074,4427.0,4426.9,21.4242]
[1755385434512,3.2078,4427.2,4426.9,20.467]
[1755385434718,0.5873,4427.0,4426.9,20.467]
[1755385435217,1.4549,4427.0,4426.9,20.8408]
[1755385439820,1.4549,4427.0,4426.9,21.0911]
[1755385440820,1.4549,4427.0,4426.9,0.2503]
[1755385441114,0.8676,4426.9,4426.5,5.21987676]
[1755385441315,3.2303,4427.2,4426.4,2.01207676]
[1755385441316,1.4549,4426.5,4426.4,2.01207676]
[1755385441521,1.4549,4426.5,4426.4,20.465]
[1755385441822,1.65460169,4426.5,4426.4,20.465]
[1755385442414,1.65460169,4426.5,4426.0,35.9819]
[1755385442415,1.03410169,4426.5,4426.0,35.9819]
[1755385442618,1.4549,4426.1,4426.0,32.525]
[1755385442819,1.4549,4426.1,4426.0,53.3638]
[1755385443421,0.19954249,4426.1,4426.0,20.464]
[1755385443621,0.78684249,4426.1,4425.5,0.3738]
[1755385443921,0.78684249,4426.1,4425.3,3.2078]
[1755385443922,1.4549,4425.7,4425.6,20.8388]
[1755385444116,1.4549,4425.7,4425.6,20.8588]
[1755385444622,1.4549,4425.7,4425.6,21.952]
[1755385450720,1.4549,4425.7,4425.6,20.8948]
[1755385450929,1.4549,4425.7,4425.6,21.1091]
[1755385452322,1.4549,4425.7,4425.6,0.6241]
[1755385452627,1.4549,4425.7,4425.6,21.1011]
[1755385453322,1.4549,4425.7,4425.6,21.2606]
[1755385453932,1.4549,4425.7,4425.6,1.0327]
[1755385454129,1.4549,4425.7,4425.6,21.5087]
[1755385454428,1.4549,4425.7,4425.6,1.0327]
[1755385454727,1.4549,4425.7,4425.6,21.5087]
[1755385455230,1.4549,4425.7,4425.6,21.2596]
[1755385457131,1.4549,4425.7,4425.6,21.2576]
[1755385457334,1.4549,4425.7,4425.6,21.4309]
[1755385457527,1.4549,4425.7,4425.6,21.68]
[1755385457730,1.4549,4425.7,4425.6,21.941]
[1755385459331,3.2078,4426.2,4425.6,21.0571]
[1755385459528,0.2544,4425.9,4425.6,21.0571]
[1755385459724,4.1629,4426.2,4426.1,0.6083]
[1755385459928,4.36569475,4426.2,4426.1,21.3325]
[1755385460124,4.62009475,4426.2,4426.1,21.9902]
[1755385460436,3.6138,4426.2,4426.1,21.9902]
[1755385460636,3.2078,4426.2,4426.1,21.9902]
[1755385461836,3.4475,4426.2,4426.1,21.9902]
[1755385462338,4.2964,4426.2,4426.1,21.9902]
[1755385462532,4.657,4426.2,4426.1,21.9902]
[1755385462726,4.657,4426.2,4426.1,21.9972]
[1755385462929,1.4492,4426.2,4426.1,21.9972]
[1755385463333,1.4492,4426.2,4426.1,21.9942]
[1755385472141,1.65261795,4426.2,4426.1,21.9942]
[1755385475453,1.65261229,4426.2,4426.1,21.9942]
[1755385476452,1.65261039,4426.2,4426.1,21.9942]
[1755385477253,1.4492,4426.2,4426.1,21.9942]
[1755385477545,1.6526081,4426.2,4426.1,21.9942]
[1755385479453,1.65261319,4426.2,4426.1,21.9942]
[1755385479953,1.65261319,4426.2,4426.1,21.745]
[1755385480348,1.65261319,4426.2,4426.1,21.9942]
[1755385491056,1.65393303,4426.2,4426.1,21.9942]
[1755385491351,0.20473303,4426.2,4426.1,21.9942]
[1755385491551,0.20473303,4426.2,4426.1,22.0167]
[1755385491760,4.1902,4427.2,4427.1,0.5855]
[1755385491952,4.65856979,4427.2,4427.1,21.937]
[1755385492147,4.65856979,4427.2,4427.1,21.4189]
[1755385492452,4.90176979,4427.2,4427.1,20.8649]
[1755385492657,4.90176979,4427.2,4427.1,21.2443]
[1755385492857,4.90176979,4427.2,4427.1,21.4189]
[1755385493059,4.90176979,4427.2,4427.1,21.6729]
[1755385496458,4.90176979,4427.2,4427.1,21.937]
[1755385497064,4.90176979,4427.2,4427.1,21.6729]
[1755385499863,3.75216979,4427.2,4427.1,21.937]
[1755385500059,4.64646979,4427.2,4427.1,21.937]
[1755385500255,4.90176979,4427.2,4427.1,21.937]
[1755385500455,4.63806979,4427.2,4427.1,21.937]
[1755385500655,3.41246979,4427.2,4427.1,21.937]
[1755385500862,0.20466979,4427.2,4427.1,21.937]
[1755385501058,0.6712,4427.7,4427.6,0.4109]
[1755385501264,0.87532197,4427.7,4427.6,21.935]
[1755385501464,0.6712,4427.7,4427.6,21.935]
[1755385501764,0.5069,4427.8,4427.7,0.8975]
[1755385501962,1.43802371,4427.8,4427.7,1.483]
[1755385502361,1.4893,4427.8,4427.7,1.483]
[1755385503265,1.4893,4427.8,4427.7,1.2189]
[1755385503466,0.595,4427.8,4427.7,20.453]
[1755385504168,1.4893,4427.8,4427.7,20.453]
[1755385505165,1.4893,4427.8,4427.7,20.8639]
[1755385505466,1.4893,4427.8,4427.7,21.4973]
[1755385505869,1.4893,4427.8,4427.7,21.2433]
[1755385506264,1.4893,4427.8,4427.7,20.453]
[1755385506669,1.4893,4427.8,4427.7,20.8324]
[1755385507273,1.4893,4427.8,4427.7,21.0835]
[1755385508571,1.4893,4427.8,4427.7,21.2433]
[1755385509272,1.4893,4427.8,4427.7,21.4973]
[1755385510477,1.4893,4427.8,4427.7,20.453]
[1755385511275,1.4893,4427.8,4427.7,21.0835]
[1755385512472,1.4893,4427.8,4427.7,21.6719]
[1755385512674,1.4893,4427.8,4427.7,21.936]
[1755385516677,1.4893,4427.8,4427.7,21.6719]
[1755385517579,1.4893,4427.8,4427.7,21.936]
[1755385519975,1.68850454,4427.8,4427.7,21.936]
[1755385521181,1.66380454,4427.8,4427.7,21.936]
[1755385525184,1.66406568,4427.8,4427.7,21.936]
[1755385528386,0.19946568,4427.8,4427.7,21.9585]
[1755385528681,3.2078,4428.4,4428.3,1.4629]
[1755385528880,3.40737865,4428.4,4428.3,21.9099]
[1755385529281,3.65537865,4428.4,4428.3,21.9099]
[1755385529882,3.89737865,4428.4,4428.3,21.9099]
[1755385531088,3.89727268,4428.4,4428.3,21.9099]
[1755385531888,4.83737268,4428.4,4428.3,21.9099]
[1755385532083,4.83737268,4428.4,4428.3,21.9089]
[1755385532685,4.83728074,4428.4,4428.3,21.9089]
[1755385534285,4.6379,4428.4,4428.3,21.9089]
[1755385537590,4.2776,4429.0,4428.9,0.5808]
[1755385537791,4.83713587,4429.0,4428.9,21.9079]
[1755385539289,3.40703587,4429.0,4428.9,21.9079]
[1755385539490,3.65503587,4429.0,4428.9,21.9079]
[1755385539685,3.89703587,4429.0,4428.9,21.9079]
[1755385539885,3.2078,4429.6,4428.9,21.9079]
[1755385540190,3.7878,4430.1,4430.0,1.4629]
[1755385540494,4.58917152,4430.1,4430.0,21.9259]
[1755385540695,4.83697152,4430.1,4430.0,21.9259]
[1755385541199,1.62085288,4432.1,4430.0,21.9259]
[1755385541200,3.2078,4430.6,4430.0,21.9259]
[1755385541391,0.5798,4430.5,4430.4,0.5808]
[1755385541591,1.0698,4430.5,4430.4,21.9559]
[1755385541995,0.822,4430.5,4430.4,21.9559]
[1755385542488,0.4076,4430.5,4430.4,21.9559]
[1755385542696,0.248,4430.5,4430.4,21.9559]
[1755385542888,0.49,4430.5,4430.4,21.9559]
[1755385543098,0.6496,4430.5,4430.4,21.9559]
[1755385543791,0.822,4430.5,4430.4,21.9559]
[1755385543993,1.1823,4430.5,4430.4,21.9559]
[1755385544392,0.822,4430.5,4430.4,21.9559]
[1755385545303,1.1823,4430.5,4430.4,21.9559]
[1755385546292,1.4301,4430.5,4430.4,21.9559]
[1755385548802,0.822,4430.5,4430.4,21.9559]
[1755385548996,0.49,4430.5,4430.4,21.9559]
[1755385549800,3.2078,4430.6,4430.4,21.9559]
[1755385550001,3.6911,4432.2,4431.6,1.4683]
[1755385550191,0.5859,4431.8,4431.7,21.7609]
[1755385550394,1.2233,4431.8,4431.7,22.0073]
[1755385550599,0.2541,4431.8,4431.7,22.0073]
[1755385550797,0.3833,4432.1,4431.7,22.0073]
[1755385551099,3.3078,4432.2,4431.9,0.6032]
[1755385551100,1.2233,4432.0,4431.9,0.6032]
[1755385551400,1.2233,4432.0,4431.9,22.0113]
[1755385552001,1.4725,4432.0,4431.9,21.7649]
[1755385552208,3.3078,4432.2,4431.9,21.403]
[1755385552395,1.4725,4432.0,4431.9,21.3926]
[1755385552795,1.4725,4432.0,4431.9,22.0113]
[1755385553704,1.4725,4432.0,4431.9,21.1462]
[1755385554306,1.4725,4432.0,4431.9,21.403]
[1755385554604,1.4725,4432.0,4431.9,21.7649]
[1755385558205,1.4725,4432.0,4431.9,22.0113]
[1755385562909,0.6374,4431.9,4431.3,0.3619]
[1755385563108,0.6325,4431.3,4430.5,3.2078]
[1755385563410,0.4198,4430.7,4430.6,21.9833]
[1755385563909,0.2541,4430.7,4430.6,21.9833]
[1755385564399,0.6325,4430.9,4430.6,21.9833]
[1755385564605,0.8866,4430.9,4430.8,0.6032]